[Event "Titled Tuesday Blitz November 07 Early 2023"]
[White "Arifarsky"]
[Black "Tsotsonava, Elene"]
[BlackFideId "13615939"]
[WhiteElo "2681"]
[BlackElo "2352"]
[Result "0-1"]
[Round "1"]
[TimeControl "180+1"]
[Date "2023.11.07"]
[WhiteClock "0:00:07"]
[BlackClock "0:00:13"]
[Board "143"]

1. Nf3 {[%clk 0:02:30]}  d5 {[%clk 0:02:59]} 2. g3 {[%clk 0:02:30]}  Nf6 {[%clk 0:02:59]} 3. Bg2 {[%clk 0:02:28]}  g6 {[%clk 0:02:59]} 4. O-O {[%clk 0:02:29]}  Bg7 {[%clk 0:03:00]} 5. d4 {[%clk 0:02:21]}  O-O {[%clk 0:02:59]} 6. c4 {[%clk 0:02:18]}  dxc4 {[%clk 0:02:59]} 7. Qc2 {[%clk 0:02:17]}  b5 {[%clk 0:02:53]} 8. a4 {[%clk 0:02:08]}  c6 {[%clk 0:02:50]} 9. Rd1 {[%clk 0:01:57]}  Bb7 {[%clk 0:02:46]} 10. Ne5 {[%clk 0:01:56]}  Nd5 {[%clk 0:02:42]} 11. Bd2 {[%clk 0:01:40]}  Nd7 {[%clk 0:02:40]} 12. Nxd7 {[%clk 0:01:25]}  Qxd7 {[%clk 0:02:40]} 13. e4 {[%clk 0:01:25]}  Nf6 {[%clk 0:02:19]} 14. Bf4 {[%clk 0:01:16]}  a6 {[%clk 0:02:16]} 15. Nc3 {[%clk 0:01:13]}  Rfd8 {[%clk 0:02:13]} 16. h4 {[%clk 0:01:06]}  h5 {[%clk 0:02:11]} 17. Bg5 {[%clk 0:01:04]}  Qe8 {[%clk 0:02:05]} 18. Qe2 {[%clk 0:00:57]}  Ng4 {[%clk 0:01:57]} 19. e5 {[%clk 0:00:55]}  Nh6 {[%clk 0:01:26]} 20. axb5 {[%clk 0:00:40]}  axb5 {[%clk 0:01:25]} 21. Nxb5 {[%clk 0:00:40]}  cxb5 {[%clk 0:01:21]} 22. Bxb7 {[%clk 0:00:39]}  Rxa1 {[%clk 0:01:21]} 23. Rxa1 {[%clk 0:00:40]}  Rxd4 {[%clk 0:01:15]} 24. Ra8 {[%clk 0:00:29]}  Rd8 {[%clk 0:01:14]} 25. Bc6 {[%clk 0:00:30]}  Qf8 {[%clk 0:01:15]} 26. Rxd8 {[%clk 0:00:30]}  Qxd8 {[%clk 0:01:16]} 27. Bxb5 {[%clk 0:00:30]}  Ng4 {[%clk 0:01:10]} 28. Bf4 {[%clk 0:00:26]}  e6 {[%clk 0:00:57]} 29. Bxc4 {[%clk 0:00:25]}  Qd4 {[%clk 0:00:57]} 30. b3 {[%clk 0:00:16]}  Nxe5 {[%clk 0:00:54]} 31. Kg2 {[%clk 0:00:14]}  Ng4 {[%clk 0:00:50]} 32. f3 {[%clk 0:00:12]}  Ne5 {[%clk 0:00:48]} 33. Be3 {[%clk 0:00:12]}  Qc3 {[%clk 0:00:45]} 34. Bf2 {[%clk 0:00:11]}  Kh7 {[%clk 0:00:37]} 35. Be1 {[%clk 0:00:11]}  Qd4 {[%clk 0:00:36]} 36. Bf2 {[%clk 0:00:11]}  Qd6 {[%clk 0:00:34]} 37. Qe4 {[%clk 0:00:10]}  Nc6 {[%clk 0:00:34]} 38. Be2 {[%clk 0:00:09]}  Bd4 {[%clk 0:00:28]} 39. Be1 {[%clk 0:00:08]}  Ne7 {[%clk 0:00:26]} 40. b4 {[%clk 0:00:07]}  Nf5 {[%clk 0:00:27]} 41. Bf2 {[%clk 0:00:05]}  Bxf2 {[%clk 0:00:26]} 42. Kxf2 {[%clk 0:00:06]}  Qxg3+ {[%clk 0:00:27]} 43. Kf1 {[%clk 0:00:05]}  Qh2 {[%clk 0:00:16]} 44. Ke1 {[%clk 0:00:06]}  Qg1+ {[%clk 0:00:15]} 45. Kd2 {[%clk 0:00:06]}  Ng3 {[%clk 0:00:12]} 46. Qe3 {[%clk 0:00:04]}  Qb1 {[%clk 0:00:10]} 47. Qc3 {[%clk 0:00:03]}  Nxe2 {[%clk 0:00:10]} 48. Kxe2 {[%clk 0:00:03]}  Qf5 {[%clk 0:00:10]} 49. Qd3 {[%clk 0:00:03]}  Qe5+ {[%clk 0:00:09]} 50. Kd1 {[%clk 0:00:03]}  Qb2 {[%clk 0:00:09]} 51. b5 {[%clk 0:00:03]}  Qb4 {[%clk 0:00:09]} 52. Kc2 {[%clk 0:00:03]}  Qxh4 {[%clk 0:00:09]} 53. Qb3 {[%clk 0:00:03]}  Qf2+ {[%clk 0:00:08]} 54. Kb1 {[%clk 0:00:04]}  Qb6 {[%clk 0:00:09]} 55. Kb2 {[%clk 0:00:04]}  h4 {[%clk 0:00:09]} 56. Qb4 {[%clk 0:00:04]}  h3 {[%clk 0:00:09]} 57. Qe4 {[%clk 0:00:04]}  Qxb5+ {[%clk 0:00:08]} 58. Kc3 {[%clk 0:00:04]}  Qf5 {[%clk 0:00:09]} 59. Qh4+ {[%clk 0:00:04]}  Kg7 {[%clk 0:00:10]} 60. Qg3 {[%clk 0:00:05]}  g5 {[%clk 0:00:09]} 61. Kd4 {[%clk 0:00:05]}  Kg6 {[%clk 0:00:09]} 62. Ke3 {[%clk 0:00:05]}  Qf4+ {[%clk 0:00:10]} 63. Kf2 {[%clk 0:00:06]}  Qxg3+ {[%clk 0:00:10]} 64. Kxg3 {[%clk 0:00:06]}  Kf5 {[%clk 0:00:11]} 65. Kxh3 {[%clk 0:00:07]}  Kf4 {[%clk 0:00:12]} 66. Kg2 {[%clk 0:00:07]}  g4 {[%clk 0:00:13]} 0-1


[Site "https://www.chess.com"]

[Event "Titled Tuesday Blitz November 07 Early 2023"]
[White "Goldin, Alexander"]
[Black "Dishman, Stephen"]
[WhiteFideId "2019540"]
[BlackFideId "403024"]
[WhiteElo "2672"]
[BlackElo "2344"]
[Result "1-0"]
[Round "1"]
[TimeControl "180+1"]
[Date "2023.11.07"]
[WhiteClock "0:00:33"]
[BlackClock "0:00:14"]
[Board "149"]

1. Nf3 {[%clk 0:02:59]}  d5 {[%clk 0:02:59]} 2. g3 {[%clk 0:02:58]}  Bg4 {[%clk 0:02:58]} 3. Bg2 {[%clk 0:02:56]}  c6 {[%clk 0:02:58]} 4. c4 {[%clk 0:02:56]}  e6 {[%clk 0:02:57]} 5. Qb3 {[%clk 0:02:54]}  Qb6 {[%clk 0:02:56]} 6. Qc2 {[%clk 0:02:53]}  Nd7 {[%clk 0:02:54]} 7. b3 {[%clk 0:02:43]}  Ngf6 {[%clk 0:02:53]} 8. O-O {[%clk 0:02:42]}  Be7 {[%clk 0:02:51]} 9. Bb2 {[%clk 0:02:37]}  O-O {[%clk 0:02:51]} 10. d4 {[%clk 0:02:35]}  Bf5 {[%clk 0:02:45]} 11. Qc1 {[%clk 0:02:32]}  h6 {[%clk 0:02:45]} 12. Nc3 {[%clk 0:02:28]}  a5 {[%clk 0:02:41]} 13. Rd1 {[%clk 0:02:11]}  Rfd8 {[%clk 0:02:20]} 14. e3 {[%clk 0:01:56]}  Bh7 {[%clk 0:02:11]} 15. h3 {[%clk 0:01:46]}  Qa7 {[%clk 0:02:09]} 16. a3 {[%clk 0:01:40]}  Qb8 {[%clk 0:02:02]} 17. Ne2 {[%clk 0:01:37]}  b5 {[%clk 0:01:57]} 18. c5 {[%clk 0:01:36]}  Ne4 {[%clk 0:01:52]} 19. Nf4 {[%clk 0:01:33]}  Bf8 {[%clk 0:01:23]} 20. Nd3 {[%clk 0:01:25]}  f6 {[%clk 0:01:18]} 21. h4 {[%clk 0:01:19]}  Re8 {[%clk 0:01:11]} 22. Bh3 {[%clk 0:01:16]}  Nxg3 {[%clk 0:00:52]} 23. fxg3 {[%clk 0:01:14]}  Qxg3+ {[%clk 0:00:53]} 24. Bg2 {[%clk 0:01:14]}  Be4 {[%clk 0:00:50]} 25. Nde1 {[%clk 0:01:12]}  e5 {[%clk 0:00:46]} 26. Qd2 {[%clk 0:01:11]}  exd4 {[%clk 0:00:40]} 27. exd4 {[%clk 0:01:10]}  Bxf3 {[%clk 0:00:22]} 28. Nxf3 {[%clk 0:01:09]}  Re4 {[%clk 0:00:23]} 29. Qf2 {[%clk 0:01:08]}  Qc7 {[%clk 0:00:19]} 30. Bh3 {[%clk 0:00:52]}  Rae8 {[%clk 0:00:18]} 31. Re1 {[%clk 0:00:52]}  Kh7 {[%clk 0:00:16]} 32. Bf5+ {[%clk 0:00:51]}  g6 {[%clk 0:00:16]} 33. Bxe4 {[%clk 0:00:51]}  dxe4 {[%clk 0:00:17]} 34. Nh2 {[%clk 0:00:49]}  f5 {[%clk 0:00:18]} 35. Bc1 {[%clk 0:00:42]}  Nf6 {[%clk 0:00:18]} 36. Bf4 {[%clk 0:00:42]}  Qd7 {[%clk 0:00:18]} 37. Rad1 {[%clk 0:00:38]}  Nd5 {[%clk 0:00:18]} 38. Be5 {[%clk 0:00:38]}  Bg7 {[%clk 0:00:18]} 39. h5 {[%clk 0:00:36]}  Bxe5 {[%clk 0:00:17]} 40. hxg6+ {[%clk 0:00:35]}  Kxg6 {[%clk 0:00:18]} 41. dxe5 {[%clk 0:00:35]}  Kh7 {[%clk 0:00:18]} 42. Kh1 {[%clk 0:00:35]}  Rf8 {[%clk 0:00:17]} 43. Rg1 {[%clk 0:00:36]}  Qe6 {[%clk 0:00:17]} 44. Qg2 {[%clk 0:00:34]}  Qxe5 {[%clk 0:00:17]} 45. Qg6+ {[%clk 0:00:34]}  Kh8 {[%clk 0:00:14]} 46. Qxh6# {[%clk 0:00:33]} 1-0


[Site "https://www.chess.com"]

[Event "Titled Tuesday Blitz November 07 Early 2023"]
[White "Maltsevskaya, Aleksandra"]
[Black "Saya, Ethan"]
[WhiteFideId "24174041"]
[BlackFideId "26095181"]
[WhiteElo "2666"]
[BlackElo "2337"]
[Result "1-0"]
[Round "1"]
[TimeControl "180+1"]
[Date "2023.11.07"]
[WhiteClock "0:01:02"]
[BlackClock "0:00:02"]
[Board "153"]

1. Nf3 {[%clk 0:03:00]}  d5 {[%clk 0:02:58]} 2. c4 {[%clk 0:03:01]}  e6 {[%clk 0:02:56]} 3. g3 {[%clk 0:03:02]}  Nf6 {[%clk 0:02:56]} 4. Bg2 {[%clk 0:03:03]}  Be7 {[%clk 0:02:55]} 5. O-O {[%clk 0:03:04]}  O-O {[%clk 0:02:52]} 6. b3 {[%clk 0:03:04]}  b6 {[%clk 0:02:53]} 7. Bb2 {[%clk 0:03:04]}  Bb7 {[%clk 0:02:53]} 8. d4 {[%clk 0:03:04]}  Nbd7 {[%clk 0:02:43]} 9. Nc3 {[%clk 0:03:02]}  c5 {[%clk 0:02:36]} 10. cxd5 {[%clk 0:03:02]}  Nxd5 {[%clk 0:02:36]} 11. Re1 {[%clk 0:02:59]}  Rc8 {[%clk 0:02:31]} 12. e4 {[%clk 0:02:57]}  Nxc3 {[%clk 0:02:31]} 13. Bxc3 {[%clk 0:02:58]}  cxd4 {[%clk 0:02:31]} 14. Bxd4 {[%clk 0:02:56]}  Bc5 {[%clk 0:02:22]} 15. Qd2 {[%clk 0:02:51]}  Bxd4 {[%clk 0:02:20]} 16. Nxd4 {[%clk 0:02:51]}  Qe7 {[%clk 0:02:14]} 17. Rad1 {[%clk 0:02:51]}  Rfd8 {[%clk 0:02:11]} 18. Qe2 {[%clk 0:02:47]}  Nc5 {[%clk 0:02:01]} 19. Rd2 {[%clk 0:02:43]}  Rd7 {[%clk 0:01:37]} 20. Red1 {[%clk 0:02:02]}  Rcd8 {[%clk 0:01:37]} 21. b4 {[%clk 0:01:49]}  Na4 {[%clk 0:01:33]} 22. Qb5 {[%clk 0:01:50]}  Nc3 {[%clk 0:01:32]} 23. Nf5 {[%clk 0:01:50]}  exf5 {[%clk 0:01:17]} 24. Rxd7 {[%clk 0:01:49]}  Nxb5 {[%clk 0:01:10]} 25. Rxd8+ {[%clk 0:01:49]}  Qf8 {[%clk 0:01:10]} 26. Rxf8+ {[%clk 0:01:49]}  Kxf8 {[%clk 0:01:10]} 27. Rd8+ {[%clk 0:01:46]}  Ke7 {[%clk 0:01:10]} 28. Rb8 {[%clk 0:01:46]}  Bxe4 {[%clk 0:01:08]} 29. Bf1 {[%clk 0:01:45]}  Nd6 {[%clk 0:01:08]} 30. a4 {[%clk 0:01:40]}  g5 {[%clk 0:01:03]} 31. a5 {[%clk 0:01:40]}  bxa5 {[%clk 0:01:02]} 32. bxa5 {[%clk 0:01:41]}  f4 {[%clk 0:00:58]} 33. Be2 {[%clk 0:01:27]}  f3 {[%clk 0:00:55]} 34. Bd1 {[%clk 0:01:27]}  f5 {[%clk 0:00:52]} 35. Kf1 {[%clk 0:01:27]}  Kf6 {[%clk 0:00:44]} 36. Ke1 {[%clk 0:01:27]}  Ke5 {[%clk 0:00:43]} 37. Rd8 {[%clk 0:01:24]}  a6 {[%clk 0:00:35]} 38. Rd7 {[%clk 0:01:20]}  f4 {[%clk 0:00:35]} 39. Ra7 {[%clk 0:01:19]}  Bb7 {[%clk 0:00:33]} 40. Bc2 {[%clk 0:01:08]}  fxg3 {[%clk 0:00:32]} 41. fxg3 {[%clk 0:01:07]}  h5 {[%clk 0:00:32]} 42. Bd3 {[%clk 0:01:07]}  Kd4 {[%clk 0:00:21]} 43. Bxa6 {[%clk 0:01:06]}  Ke3 {[%clk 0:00:11]} 44. Bxb7 {[%clk 0:01:06]}  f2+ {[%clk 0:00:12]} 45. Kf1 {[%clk 0:01:06]}  Nc4 {[%clk 0:00:12]} 46. Ba6 {[%clk 0:01:06]}  Nd2+ {[%clk 0:00:11]} 47. Kg2 {[%clk 0:01:07]}  Ne4 {[%clk 0:00:03]} 48. Re7 {[%clk 0:01:04]}  g4 {[%clk 0:00:03]} 49. Rxe4+ {[%clk 0:01:01]}  Kxe4 {[%clk 0:00:02]} 50. Kxf2 {[%clk 0:01:02]} 1-0


[Site "https://www.chess.com"]

[Event "Titled Tuesday Blitz November 07 Early 2023"]
[White "Goswami, Vedant"]
[Black "amanmuhammethommadov"]
[WhiteFideId "5003725"]
[WhiteElo "2334"]
[BlackElo "2663"]
[Result "0-1"]
[Round "1"]
[TimeControl "180+1"]
[Date "2023.11.07"]
[WhiteClock "0:00:03"]
[BlackClock "0:00:22"]
[Board "154"]

1. c3 {[%clk 0:02:58]}  Nf6 {[%clk 0:03:00]} 2. d4 {[%clk 0:02:57]}  g6 {[%clk 0:03:00]} 3. Nf3 {[%clk 0:02:56]}  Bg7 {[%clk 0:03:01]} 4. Bf4 {[%clk 0:02:56]}  O-O {[%clk 0:03:01]} 5. h3 {[%clk 0:02:56]}  d6 {[%clk 0:03:01]} 6. Nbd2 {[%clk 0:02:55]}  Nfd7 {[%clk 0:02:58]} 7. e4 {[%clk 0:02:51]}  e5 {[%clk 0:02:58]} 8. dxe5 {[%clk 0:02:51]}  dxe5 {[%clk 0:02:59]} 9. Bg5 {[%clk 0:02:44]}  f6 {[%clk 0:02:59]} 10. Bc4+ {[%clk 0:02:43]}  Kh8 {[%clk 0:02:58]} 11. Bh4 {[%clk 0:02:39]}  Nc6 {[%clk 0:02:59]} 12. Qe2 {[%clk 0:02:34]}  Qe7 {[%clk 0:02:58]} 13. g4 {[%clk 0:02:24]}  Nb6 {[%clk 0:02:47]} 14. Bb3 {[%clk 0:02:23]}  a5 {[%clk 0:02:47]} 15. a4 {[%clk 0:02:13]}  Be6 {[%clk 0:02:47]} 16. Bg3 {[%clk 0:02:10]}  Rfd8 {[%clk 0:02:43]} 17. Bc2 {[%clk 0:02:02]}  Qc5 {[%clk 0:02:39]} 18. O-O {[%clk 0:01:52]}  Nc4 {[%clk 0:02:33]} 19. Rab1 {[%clk 0:01:41]}  Nxd2 {[%clk 0:02:28]} 20. Nxd2 {[%clk 0:01:40]}  Bh6 {[%clk 0:02:28]} 21. Rfd1 {[%clk 0:01:37]}  Kg7 {[%clk 0:01:54]} 22. Nb3 {[%clk 0:01:32]}  Qb6 {[%clk 0:01:54]} 23. Qb5 {[%clk 0:01:24]}  Na7 {[%clk 0:01:35]} 24. Qxa5 {[%clk 0:01:08]}  Nc6 {[%clk 0:01:33]} 25. Qb5 {[%clk 0:01:01]}  Qxb5 {[%clk 0:00:58]} 26. axb5 {[%clk 0:01:00]}  Na5 {[%clk 0:00:59]} 27. Nc5 {[%clk 0:00:57]}  Bf7 {[%clk 0:00:49]} 28. Rxd8 {[%clk 0:00:37]}  Rxd8 {[%clk 0:00:49]} 29. Rd1 {[%clk 0:00:38]}  Rxd1+ {[%clk 0:00:42]} 30. Bxd1 {[%clk 0:00:38]}  Nc4 {[%clk 0:00:34]} 31. b4 {[%clk 0:00:34]}  Nd6 {[%clk 0:00:31]} 32. Be2 {[%clk 0:00:28]}  Bd2 {[%clk 0:00:31]} 33. b6 {[%clk 0:00:22]}  cxb6 {[%clk 0:00:30]} 34. Nd7 {[%clk 0:00:22]}  b5 {[%clk 0:00:29]} 35. h4 {[%clk 0:00:19]}  Bxc3 {[%clk 0:00:25]} 36. g5 {[%clk 0:00:19]}  Nxe4 {[%clk 0:00:25]} 37. gxf6+ {[%clk 0:00:18]}  Nxf6 {[%clk 0:00:18]} 38. Bxe5 {[%clk 0:00:16]}  Bxe5 {[%clk 0:00:19]} 39. Nxe5 {[%clk 0:00:16]}  Be8 {[%clk 0:00:20]} 40. Bf3 {[%clk 0:00:16]}  b6 {[%clk 0:00:18]} 41. Be2 {[%clk 0:00:15]}  Nd5 {[%clk 0:00:18]} 42. Nf3 {[%clk 0:00:13]}  Nxb4 {[%clk 0:00:18]} 43. Nd4 {[%clk 0:00:13]}  Nd5 {[%clk 0:00:19]} 44. Bxb5 {[%clk 0:00:13]}  Bxb5 {[%clk 0:00:19]} 45. Nxb5 {[%clk 0:00:13]}  Kf6 {[%clk 0:00:19]} 46. Kg2 {[%clk 0:00:13]}  Kf5 {[%clk 0:00:20]} 47. Kg3 {[%clk 0:00:13]}  Ke5 {[%clk 0:00:20]} 48. Kg4 {[%clk 0:00:13]}  h6 {[%clk 0:00:20]} 49. h5 {[%clk 0:00:12]}  Nf6+ {[%clk 0:00:20]} 50. Kh4 {[%clk 0:00:11]}  Nxh5 {[%clk 0:00:21]} 51. Kg4 {[%clk 0:00:10]}  Ng7 {[%clk 0:00:22]} 52. f4+ {[%clk 0:00:10]}  Kf6 {[%clk 0:00:21]} 53. Nd4 {[%clk 0:00:10]}  h5+ {[%clk 0:00:21]} 54. Kf3 {[%clk 0:00:10]}  Nf5 {[%clk 0:00:22]} 55. Nc6 {[%clk 0:00:08]}  b5 {[%clk 0:00:22]} 56. Ke4 {[%clk 0:00:03]}  h4 {[%clk 0:00:22]} 0-1


[Site "https://www.chess.com"]

[Event "Titled Tuesday Blitz November 07 Early 2023"]
[White "Kleiman, Jake"]
[Black "Fernandez Garcia, Gumersindo"]
[WhiteFideId "2020041"]
[BlackFideId "24516740"]
[WhiteElo "2663"]
[BlackElo "2331"]
[Result "1-0"]
[Round "1"]
[TimeControl "180+1"]
[Date "2023.11.07"]
[WhiteClock "0:00:12"]
[BlackClock "0:00:02"]
[Board "155"]

1. e4 {[%clk 0:02:59]}  c5 {[%clk 0:02:59]} 2. Nf3 {[%clk 0:02:59]}  g6 {[%clk 0:02:57]} 3. d4 {[%clk 0:02:57]}  cxd4 {[%clk 0:02:58]} 4. Nxd4 {[%clk 0:02:58]}  Bg7 {[%clk 0:02:58]} 5. Nc3 {[%clk 0:02:58]}  Nc6 {[%clk 0:02:58]} 6. Be3 {[%clk 0:02:59]}  Nf6 {[%clk 0:02:57]} 7. Bc4 {[%clk 0:02:59]}  O-O {[%clk 0:02:57]} 8. Bb3 {[%clk 0:03:00]}  d6 {[%clk 0:02:58]} 9. h3 {[%clk 0:02:59]}  Bd7 {[%clk 0:02:55]} 10. O-O {[%clk 0:02:59]}  Na5 {[%clk 0:02:47]} 11. Re1 {[%clk 0:02:58]}  Rc8 {[%clk 0:02:46]} 12. Qd3 {[%clk 0:02:52]}  Nxb3 {[%clk 0:02:41]} 13. axb3 {[%clk 0:02:51]}  a6 {[%clk 0:02:41]} 14. Nd5 {[%clk 0:02:51]}  Nxd5 {[%clk 0:02:08]} 15. exd5 {[%clk 0:02:51]}  Bxd4 {[%clk 0:02:02]} 16. Bxd4 {[%clk 0:02:49]}  Bf5 {[%clk 0:02:02]} 17. Qe3 {[%clk 0:02:33]}  Bxc2 {[%clk 0:01:54]} 18. h4 {[%clk 0:02:07]}  f6 {[%clk 0:01:43]} 19. Rac1 {[%clk 0:01:38]}  Bf5 {[%clk 0:01:31]} 20. Rxc8 {[%clk 0:01:37]}  Bxc8 {[%clk 0:01:31]} 21. Qxe7 {[%clk 0:01:31]}  Qxe7 {[%clk 0:01:25]} 22. Rxe7 {[%clk 0:01:32]}  Rf7 {[%clk 0:01:08]} 23. Re8+ {[%clk 0:01:23]}  Rf8 {[%clk 0:01:08]} 24. Re7 {[%clk 0:01:22]}  Rf7 {[%clk 0:01:08]} 25. Re8+ {[%clk 0:01:16]}  Rf8 {[%clk 0:01:08]} 26. Re3 {[%clk 0:01:17]}  b5 {[%clk 0:00:59]} 27. Rc3 {[%clk 0:01:11]}  Bb7 {[%clk 0:00:58]} 28. Rc7 {[%clk 0:01:06]}  Bxd5 {[%clk 0:00:57]} 29. Rd7 {[%clk 0:01:04]}  Bxb3 {[%clk 0:00:51]} 30. Rxd6 {[%clk 0:01:04]}  a5 {[%clk 0:00:52]} 31. Bxf6 {[%clk 0:01:01]}  b4 {[%clk 0:00:45]} 32. f3 {[%clk 0:00:54]}  a4 {[%clk 0:00:41]} 33. Rb6 {[%clk 0:00:46]}  Rc8 {[%clk 0:00:08]} 34. Rxb4 {[%clk 0:00:44]}  Rc2 {[%clk 0:00:09]} 35. Rb7 {[%clk 0:00:39]}  Bd5 {[%clk 0:00:08]} 36. Rg7+ {[%clk 0:00:34]}  Kf8 {[%clk 0:00:08]} 37. Rxh7 {[%clk 0:00:35]}  Rc1+ {[%clk 0:00:06]} 38. Kh2 {[%clk 0:00:34]}  Rc2 {[%clk 0:00:07]} 39. Kg3 {[%clk 0:00:34]}  Be6 {[%clk 0:00:05]} 40. Ra7 {[%clk 0:00:31]}  Bb3 {[%clk 0:00:05]} 41. Kh3 {[%clk 0:00:24]}  Kg8 {[%clk 0:00:04]} 42. g4 {[%clk 0:00:22]}  Kf8 {[%clk 0:00:04]} 43. Kg3 {[%clk 0:00:22]}  Rc1 {[%clk 0:00:03]} 44. Kf4 {[%clk 0:00:21]}  Rf1 {[%clk 0:00:03]} 45. Kg5 {[%clk 0:00:18]}  Rxf3 {[%clk 0:00:03]} 46. Kxg6 {[%clk 0:00:19]}  Bc2+ {[%clk 0:00:02]} 47. Kg5 {[%clk 0:00:19]}  Kg8 {[%clk 0:00:01]} 48. h5 {[%clk 0:00:19]}  Kf8 {[%clk 0:00:01]} 49. h6 {[%clk 0:00:19]}  Rh3 {[%clk 0:00:01]} 50. Kf4 {[%clk 0:00:16]}  Kg8 {[%clk 0:00:01]} 51. g5 {[%clk 0:00:15]}  Kf8 {[%clk 0:00:02]} 52. Ke5 {[%clk 0:00:14]}  Rh1 {[%clk 0:00:02]} 53. Kd6 {[%clk 0:00:13]}  Bb3 {[%clk 0:00:03]} 54. Kc5 {[%clk 0:00:13]}  Bc2 {[%clk 0:00:03]} 55. Kb4 {[%clk 0:00:14]}  Bb3 {[%clk 0:00:04]} 56. h7 {[%clk 0:00:13]}  Rxh7 {[%clk 0:00:02]} 57. Rxh7 {[%clk 0:00:12]} 1-0


[Site "https://www.chess.com"]

[Event "Titled Tuesday Blitz November 07 Early 2023"]
[White "Samaganova, Aleksandra"]
[Black "Jakubowski, Krzysztof"]
[WhiteFideId "13800221"]
[BlackFideId "1112848"]
[WhiteElo "2330"]
[BlackElo "2662"]
[Result "0-1"]
[Round "1"]
[TimeControl "180+1"]
[Date "2023.11.07"]
[WhiteClock "0:01:04"]
[BlackClock "0:00:45"]
[Board "156"]

1. c4 {[%clk 0:03:00]}  e5 {[%clk 0:02:57]} 2. Nc3 {[%clk 0:03:01]}  Nc6 {[%clk 0:02:56]} 3. g3 {[%clk 0:03:00]}  g6 {[%clk 0:02:55]} 4. Bg2 {[%clk 0:03:01]}  Bg7 {[%clk 0:02:55]} 5. Nf3 {[%clk 0:03:01]}  d6 {[%clk 0:02:53]} 6. O-O {[%clk 0:03:01]}  f5 {[%clk 0:02:51]} 7. d3 {[%clk 0:03:01]}  h6 {[%clk 0:02:49]} 8. Ne1 {[%clk 0:02:59]}  Nf6 {[%clk 0:02:46]} 9. Nc2 {[%clk 0:02:59]}  Ne7 {[%clk 0:02:38]} 10. Rb1 {[%clk 0:02:58]}  O-O {[%clk 0:02:37]} 11. b4 {[%clk 0:02:58]}  g5 {[%clk 0:02:31]} 12. f4 {[%clk 0:02:58]}  exf4 {[%clk 0:02:29]} 13. gxf4 {[%clk 0:02:57]}  gxf4 {[%clk 0:02:09]} 14. Bd2 {[%clk 0:02:44]}  Ng6 {[%clk 0:02:04]} 15. Qe1 {[%clk 0:02:40]}  Re8 {[%clk 0:01:51]} 16. Bxf4 {[%clk 0:02:36]}  Ng4 {[%clk 0:01:32]} 17. h3 {[%clk 0:02:27]}  N4e5 {[%clk 0:01:28]} 18. Bd5+ {[%clk 0:02:21]}  Kh7 {[%clk 0:01:23]} 19. Qg3 {[%clk 0:02:17]}  c6 {[%clk 0:01:17]} 20. Bg2 {[%clk 0:02:15]}  Rg8 {[%clk 0:01:16]} 21. Kh1 {[%clk 0:02:08]}  Nxf4 {[%clk 0:01:15]} 22. Qxf4 {[%clk 0:02:05]}  Ng6 {[%clk 0:01:15]} 23. Qd2 {[%clk 0:02:05]}  Qh4 {[%clk 0:01:09]} 24. Ne1 {[%clk 0:01:51]}  Ne5 {[%clk 0:00:59]} 25. Nf3 {[%clk 0:01:36]}  Qg3 {[%clk 0:00:50]} 26. Rbc1 {[%clk 0:01:09]}  Bf6 {[%clk 0:00:46]} 27. Qe1 {[%clk 0:01:04]}  Qxg2# {[%clk 0:00:45]} 0-1


[Site "https://www.chess.com"]

[Event "Titled Tuesday Blitz November 07 Early 2023"]
[White "Shuvalova, Polina"]
[Black "Bokros, Albert"]
[WhiteFideId "24171760"]
[BlackFideId "710458"]
[WhiteElo "2659"]
[BlackElo "2330"]
[Result "1-0"]
[Round "1"]
[TimeControl "180+1"]
[Date "2023.11.07"]
[WhiteClock "0:02:46"]
[BlackClock "0:02:24"]
[Board "157"]

1. Nf3 {[%clk 0:03:00]}  d5 {[%clk 0:02:57]} 2. g3 {[%clk 0:03:01]}  Nf6 {[%clk 0:02:56]} 3. Bg2 {[%clk 0:03:01]}  c6 {[%clk 0:02:55]} 4. O-O {[%clk 0:03:01]}  Bg4 {[%clk 0:02:55]} 5. b3 {[%clk 0:03:01]}  Nbd7 {[%clk 0:02:54]} 6. Bb2 {[%clk 0:03:01]}  e6 {[%clk 0:02:53]} 7. c4 {[%clk 0:03:00]}  Bd6 {[%clk 0:02:51]} 8. d4 {[%clk 0:02:57]}  O-O {[%clk 0:02:50]} 9. Ne5 {[%clk 0:02:56]}  Bf5 {[%clk 0:02:45]} 10. Nd2 {[%clk 0:02:56]}  Ne4 {[%clk 0:02:35]} 11. Rc1 {[%clk 0:02:51]}  f6 {[%clk 0:02:31]} 12. Nxd7 {[%clk 0:02:50]}  Qxd7 {[%clk 0:02:31]} 13. Nxe4 {[%clk 0:02:47]}  Bxe4 {[%clk 0:02:31]} 14. f3 {[%clk 0:02:46]}  Bg6 {[%clk 0:02:30]} 15. e4 {[%clk 0:02:46]}  Bf5 {[%clk 0:02:24]} 16. exf5 {[%clk 0:02:46]} 1-0


[Site "https://www.chess.com"]

[Event "Titled Tuesday Blitz November 07 Early 2023"]
[White "gpsji27"]
[Black "Borgaonkar Akshay"]
[BlackFideId "25639110"]
[WhiteElo "2324"]
[BlackElo "2656"]
[Result "0-1"]
[Round "1"]
[TimeControl "180+1"]
[Date "2023.11.07"]
[WhiteClock "0:00:00"]
[BlackClock "0:00:05"]
[Board "160"]

1. d4 {[%clk 0:03:00]}  g6 {[%clk 0:02:54]} 2. e4 {[%clk 0:03:00]}  Bg7 {[%clk 0:02:53]} 3. Nc3 {[%clk 0:03:00]}  a6 {[%clk 0:02:54]} 4. a4 {[%clk 0:02:59]}  c6 {[%clk 0:02:53]} 5. Nf3 {[%clk 0:02:55]}  d5 {[%clk 0:02:53]} 6. e5 {[%clk 0:02:54]}  f6 {[%clk 0:02:51]} 7. Bf4 {[%clk 0:02:46]}  Bg4 {[%clk 0:02:45]} 8. h3 {[%clk 0:02:36]}  Bxf3 {[%clk 0:02:45]} 9. Qxf3 {[%clk 0:02:37]}  Nd7 {[%clk 0:02:42]} 10. exf6 {[%clk 0:01:57]}  Ngxf6 {[%clk 0:02:41]} 11. O-O-O {[%clk 0:01:57]}  O-O {[%clk 0:02:41]} 12. Qe3 {[%clk 0:01:56]}  b5 {[%clk 0:02:29]} 13. Qe6+ {[%clk 0:01:39]}  Kh8 {[%clk 0:02:29]} 14. Qxc6 {[%clk 0:01:39]}  b4 {[%clk 0:02:30]} 15. Na2 {[%clk 0:01:31]}  b3 {[%clk 0:02:30]} 16. Nc3 {[%clk 0:01:29]}  bxc2 {[%clk 0:02:28]} 17. Re1 {[%clk 0:01:29]}  Ne4 {[%clk 0:01:58]} 18. Nxe4 {[%clk 0:01:17]}  dxe4 {[%clk 0:01:57]} 19. Be3 {[%clk 0:01:16]}  Nf6 {[%clk 0:01:53]} 20. Bc4 {[%clk 0:01:02]}  Qa5 {[%clk 0:01:51]} 21. Bb3 {[%clk 0:00:47]}  Rfc8 {[%clk 0:01:43]} 22. Qe6 {[%clk 0:00:47]}  Rab8 {[%clk 0:01:33]} 23. Bd2 {[%clk 0:00:39]}  Qd8 {[%clk 0:01:33]} 24. Bc3 {[%clk 0:00:27]}  Rb6 {[%clk 0:01:33]} 25. Qf7 {[%clk 0:00:28]}  Bh6+ {[%clk 0:01:23]} 26. Re3 {[%clk 0:00:21]}  Bxe3+ {[%clk 0:01:14]} 27. fxe3 {[%clk 0:00:22]}  Qd6 {[%clk 0:01:09]} 28. Rf1 {[%clk 0:00:20]}  Qg3 {[%clk 0:00:53]} 29. Bd2 {[%clk 0:00:09]}  Qxg2 {[%clk 0:00:49]} 30. Re1 {[%clk 0:00:09]}  Qf2 {[%clk 0:00:44]} 31. Be6 {[%clk 0:00:05]}  Rcb8 {[%clk 0:00:39]} 32. b3 {[%clk 0:00:04]}  R6b7 {[%clk 0:00:33]} 33. Bc4 {[%clk 0:00:04]}  Qh4 {[%clk 0:00:28]} 34. Qe6 {[%clk 0:00:04]}  Qg3 {[%clk 0:00:24]} 35. Rf1 {[%clk 0:00:05]}  Qg5 {[%clk 0:00:19]} 36. Qf7 {[%clk 0:00:05]}  Qh6 {[%clk 0:00:13]} 37. d5 {[%clk 0:00:05]}  Qg7 {[%clk 0:00:13]} 38. Qxg7+ {[%clk 0:00:05]}  Kxg7 {[%clk 0:00:13]} 39. Bc3 {[%clk 0:00:05]}  Rb6 {[%clk 0:00:12]} 40. Kxc2 {[%clk 0:00:06]}  Kh6 {[%clk 0:00:11]} 41. Bd4 {[%clk 0:00:06]}  R6b7 {[%clk 0:00:07]} 42. d6 {[%clk 0:00:00]}  Nh5 {[%clk 0:00:05]} 0-1


[Site "https://www.chess.com"]